Workbook

Sheet CE1
B2: DIMENSÕES DE MAQUINAGEM CONFIGURAÇÕES ESPECIAIS
B10: OPÇÃO 1 | J10: OPÇÃO 2 | Y10: DIMENSÕES MAQUINADAS FRENTES (OPÇÃO 1)
B11: 1 GAVETA COM H=83 + 4 GAVETAS COM H=93 MAQUINAÇÃO DE FRENTES IGUAIS | E11: Dimensões maquinadas (mm) | F11: Altura das frentes de gaveta (mm) | J11: 5 GAVETAS COM H=93 FRENTES INFERIORES MAQUINADAS DIFERENTES | M11: Dimensões maquinadas (mm) | N11: Altura das frentes de gaveta (mm) | Y11: X (mm) | Z11: Y (mm)
B12: GAVETA 1 - H1=83 | E12: 37 | F12: 138 | J12: GAVETA 1 - H1=93 | M12: 37 | N12: 138 | Y12: 70 | Z12: 30
B13: GAVETA 2 - H2=93 | E13: 177 | J13: GAVETA 2 - H2=93 | M13: 163
B14: GAVETA 3 - H3=93 | E14: 317 | J14: GAVETA 3 - H3=93 | M14: 303 | Z14: DIMENSÕES MAQUINADAS FRENTES (OPÇÃO 2)
B15: GAVETA 4 - H4=93 | E15: 457 | J15: GAVETA 4 - H4=93 | M15: 443 | Z15: X (mm) | AA15: Y (mm)
B16: GAVETA 5 - H5=93 | E16: 597 | J16: GAVETA 5 - H5=93 | M16: 583 | Y16: GAVETA INFERIOR | Z16: 70 | AA16: 30
Y17: RESTO DAS GAVETAS | Z17: 56 | AA17: 30
AD20: =IF(MODULO!K13>0,(Y12-MODULO!K12),"") ->  | AE20: =IF(MODULO!K13>0,(15.5+MODULO!K13),"") -> 
B22: TOTAL CAJONES | E22: =COUNT(E12:E21) -> 5

Sheet C12
E1: DIMENSÕES DE MAQUINAÇÃO
H8: Dimensões maquinadas(mm) | I8: Altura do frente (mm)
E9: GAVETA 1 - H1 | H9: =IF(MODULO!H13>=1,37," ") ->  | I9: ='C11'!I9 -> 
E10: GAVETA 2 - H2 | H10: =IF(MODULO!$H$13>=2,'TABLA ENTRADA DE DATOS'!C17+H9+2," ") ->  | I10: ='C11'!I10 -> 
E11: GAVETA 3 - H3 | H11: =IF(MODULO!$H$13>=3,'TABLA ENTRADA DE DATOS'!C18+H10+2," ") ->  | I11: ='C11'!I11 -> 
E12: GAVETA 4 - H4 | H12: =IF(MODULO!$H$13>=4,'TABLA ENTRADA DE DATOS'!C19+H11+2," ") ->  | I12: ='C11'!I12 -> 
E13: GAVETA 5 - H5 | H13: =IF(MODULO!$H$13>=5,'TABLA ENTRADA DE DATOS'!C20+H12+2," ") ->  | I13: ='C11'!I13 -> 
E14: GAVETA 6 - H6 | H14: =IF(MODULO!$H$13>=6,'TABLA ENTRADA DE DATOS'!C21+H13+2," ") ->  | I14: ='C11'!I14 -> 
E15: GAVETA 7 - H7 | H15: =IF(MODULO!$H$13>=7,'TABLA ENTRADA DE DATOS'!C22+H14+2," ") ->  | I15: ='C11'!I15 -> 
E16: GAVETA 8 - H8 | H16: =IF(MODULO!$H$13>=8,'TABLA ENTRADA DE DATOS'!C23+H15+2," ") ->  | I16: ='C11'!I16 ->  | V16: DIMENSIONI DI LAVORAZIONE FRONTAL
E17: GAVETA 9 - H9 | H17: =IF(MODULO!$H$13>=9,'TABLA ENTRADA DE DATOS'!C24+H16+2," ") ->  | I17: ='C11'!I17 ->  | V17: X (mm) | W17: Y (mm)
E18: GAVETA 10 - H10 | H18: =IF(MODULO!$H$13>=10,'TABLA ENTRADA DE DATOS'!C25+H17+2," ") ->  | I18: ='C11'!I18 ->  | V18: =IF(MODULO!H13>0,(55+MODULO!H11),"") ->  | W18: =IF(MODULO!H13>0,(15.5+MODULO!H12),"") -> 
E19: TOTAL CAJONES | H19: =COUNT(H9:H18) -> 0

Sheet C11
E1: DADOS DA GAVETA
H8: Altura da gaveta (mm) | I8: Altura do frente (mm) | AI8: DATOS CAJÓN FIJOS
E9: GAVETA 1 | I9: =IF(MODULO!$H$13>=1,'TABLA ENTRADA DE DATOS'!C17," ") ->  | J9: =IF(AND(MODULO!$H$8=700,MODULO!$H$9=16,MODULO!$H$11=15,MODULO!$H$12=15,H9=$AI$11,I9<$AK$11),"INCOMPATIBILIDADE ENTRE a altura mínima e a altura calculada da margem, tente uma configuração diferente ou contacte o nosso apoio técnico",IF('TABLA ENTRADA DE DATOS'!$D$31>MODULO!$H$8,"INCOMPATIBILIDADE ENTRE a altura mínima e a altura calculada da margem, tente uma configuração diferente ou contacte o nosso apoio técnico.","")) ->  | U9: =IF(AND(J9="INCOMPATIBILIDADE ENTRE a altura mínima e a altura calculada da margem, tente uma configuração diferente ou contacte o nosso apoio técnico",MODULO!$H$8=700,MODULO!$H$9=16,MODULO!$H$11=15,MODULO!$H$12=15),W9,"") ->  | W9: INTRUÇÕES: Em caso de "Incompatibilidade entre a altura mínima e a altura calculada do bordo", estão disponíveis as seguintes configurações especiais: Módulo com 5 gavetas Altura da gaveta 93 frente inferior diferente | AI9: Hcajón | AJ9: Hint mínima | AK9: Hfrontera
E10: GAVETA 2 | I10: =IF(MODULO!$H$13>=2,'TABLA ENTRADA DE DATOS'!C18," ") ->  | J10: =IF(AND(MODULO!$H$8=700,MODULO!$H$9=16,MODULO!$H$11=15,MODULO!$H$12=15,H10=$AI$11,I10<$AK$11),"INCOMPATIBILIDADE ENTRE a altura mínima e a altura calculada da margem, tente uma configuração diferente ou contacte o nosso apoio técnico",IF('TABLA ENTRADA DE DATOS'!$D$31>MODULO!$H$8,"INCOMPATIBILIDADE ENTRE a altura mínima e a altura calculada da margem, tente uma configuração diferente ou contacte o nosso apoio técnico.","")) ->  | U10: =IF(AND(J10="INCOMPATIBILIDADE ENTRE a altura mínima e a altura calculada da margem, tente uma configuração diferente ou contacte o nosso apoio técnico",MODULO!$H$8=700,MODULO!$H$9=16,MODULO!$H$11=15,MODULO!$H$12=15),W10,"") ->  | W10: Módulo com 1 caixa de altura 83 e 4 caixas de altura 93 Para aceder às mesmas, clique neste texto. Se mesmo estas configurações não corresponderem às suas necessidades, pode tentar outra configuração ou contactar o nosso serviço de assistência técnica. | AH10: 1 | AI10: 83 | AJ10: 101 | AK10: =Tabla110[[#This Row],[Hint mínima]]+(2*MODULO!$H$11) -> 101
E11: GAVETA 3 | I11: =IF(MODULO!$H$13>=3,'TABLA ENTRADA DE DATOS'!C19," ") ->  | J11: =IF(AND(MODULO!$H$8=700,MODULO!$H$9=16,MODULO!$H$11=15,MODULO!$H$12=15,H11=$AI$11,I11<$AK$11),"INCOMPATIBILIDADE ENTRE a altura mínima e a altura calculada da margem, tente uma configuração diferente ou contacte o nosso apoio técnico",IF('TABLA ENTRADA DE DATOS'!$D$31>MODULO!$H$8,"INCOMPATIBILIDADE ENTRE a altura mínima e a altura calculada da margem, tente uma configuração diferente ou contacte o nosso apoio técnico.","")) ->  | AH11: 2 | AI11: 93 | AJ11: 111 | AK11: =Tabla110[[#This Row],[Hint mínima]]+(2*MODULO!$H$11) -> 111
E12: GAVETA 4 | I12: =IF(MODULO!$H$13>=4,'TABLA ENTRADA DE DATOS'!C20," ") ->  | J12: =IF(AND(MODULO!$H$8=700,MODULO!$H$9=16,MODULO!$H$11=15,MODULO!$H$12=15,H12=$AI$11,I12<$AK$11),"INCOMPATIBILIDADE ENTRE a altura mínima e a altura calculada da margem, tente uma configuração diferente ou contacte o nosso apoio técnico",IF('TABLA ENTRADA DE DATOS'!$D$31>MODULO!$H$8,"INCOMPATIBILIDADE ENTRE a altura mínima e a altura calculada da margem, tente uma configuração diferente ou contacte o nosso apoio técnico.","")) ->  | AH12: 3 | AI12: 131 | AJ12: 149 | AK12: =Tabla110[[#This Row],[Hint mínima]]+(2*MODULO!$H$11) -> 149
E13: GAVETA 5 | I13: =IF(MODULO!$H$13>=5,'TABLA ENTRADA DE DATOS'!C21," ") ->  | J13: =IF(AND(MODULO!$H$8=700,MODULO!$H$9=16,MODULO!$H$11=15,MODULO!$H$12=15,H13=$AI$11,I13<$AK$11),"INCOMPATIBILIDADE ENTRE a altura mínima e a altura calculada da margem, tente uma configuração diferente ou contacte o nosso apoio técnico",IF('TABLA ENTRADA DE DATOS'!$D$31>MODULO!$H$8,"INCOMPATIBILIDADE ENTRE a altura mínima e a altura calculada da margem, tente uma configuração diferente ou contacte o nosso apoio técnico.","")) ->  | AH13: 4 | AI13: 178 | AJ13: 196 | AK13: =Tabla110[[#This Row],[Hint mínima]]+(2*MODULO!$H$11) -> 196
E14: GAVETA 6 | I14: =IF(MODULO!$H$13>=6,'TABLA ENTRADA DE DATOS'!C22," ") ->  | J14: =IF(AND(MODULO!$H$8=700,MODULO!$H$9=16,MODULO!$H$11=15,MODULO!$H$12=15,H14=$AI$11,I14<$AK$11),"INCOMPATIBILIDADE ENTRE a altura mínima e a altura calculada da margem, tente uma configuração diferente ou contacte o nosso apoio técnico",IF('TABLA ENTRADA DE DATOS'!$D$31>MODULO!$H$8,"INCOMPATIBILIDADE ENTRE a altura mínima e a altura calculada da margem, tente uma configuração diferente ou contacte o nosso apoio técnico.","")) ->  | AH14: 5 | AI14: 242 | AJ14: 264 | AK14: =Tabla110[[#This Row],[Hint mínima]]+(2*MODULO!$H$11) -> 264
E15: GAVETA 7 | I15: =IF(MODULO!$H$13>=7,'TABLA ENTRADA DE DATOS'!C23," ") ->  | J15: =IF(AND(MODULO!$H$8=700,MODULO!$H$9=16,MODULO!$H$11=15,MODULO!$H$12=15,H15=$AI$11,I15<$AK$11),"INCOMPATIBILIDADE ENTRE a altura mínima e a altura calculada da margem, tente uma configuração diferente ou contacte o nosso apoio técnico",IF('TABLA ENTRADA DE DATOS'!$D$31>MODULO!$H$8,"INCOMPATIBILIDADE ENTRE a altura mínima e a altura calculada da margem, tente uma configuração diferente ou contacte o nosso apoio técnico.","")) -> 
E16: GAVETA 8 | I16: =IF(MODULO!$H$13>=8,'TABLA ENTRADA DE DATOS'!C24," ") ->  | J16: =IF(AND(MODULO!$H$8=700,MODULO!$H$9=16,MODULO!$H$11=15,MODULO!$H$12=15,H16=$AI$11,I16<$AK$11),"INCOMPATIBILIDADE ENTRE a altura mínima e a altura calculada da margem, tente uma configuração diferente ou contacte o nosso apoio técnico",IF('TABLA ENTRADA DE DATOS'!$D$31>MODULO!$H$8,"INCOMPATIBILIDADE ENTRE a altura mínima e a altura calculada da margem, tente uma configuração diferente ou contacte o nosso apoio técnico.","")) ->  | L16: =IF(AND(H16=$AI$12,I16<$AK$12),"INCOMP","") -> 
E17: GAVETA 9 | I17: =IF(MODULO!$H$13>=9,'TABLA ENTRADA DE DATOS'!C25," ") ->  | J17: =IF(AND(MODULO!$H$8=700,MODULO!$H$9=16,MODULO!$H$11=15,MODULO!$H$12=15,H17=$AI$11,I17<$AK$11),"INCOMPATIBILIDADE ENTRE a altura mínima e a altura calculada da margem, tente uma configuração diferente ou contacte o nosso apoio técnico",IF('TABLA ENTRADA DE DATOS'!$D$31>MODULO!$H$8,"INCOMPATIBILIDADE ENTRE a altura mínima e a altura calculada da margem, tente uma configuração diferente ou contacte o nosso apoio técnico.","")) -> 
E18: GAVETA 10 | I18: =IF(MODULO!$H$13>=10,'TABLA ENTRADA DE DATOS'!C26," ") ->  | J18: =IF(AND(MODULO!$H$8=700,MODULO!$H$9=16,MODULO!$H$11=15,MODULO!$H$12=15,H18=$AI$11,I18<$AK$11),"INCOMPATIBILIDADE ENTRE a altura mínima e a altura calculada da margem, tente uma configuração diferente ou contacte o nosso apoio técnico",IF('TABLA ENTRADA DE DATOS'!$D$31>MODULO!$H$8,"INCOMPATIBILIDADE ENTRE a altura mínima e a altura calculada da margem, tente uma configuração diferente ou contacte o nosso apoio técnico.","")) -> 
E19: TOTAL CAJONES | H19: =COUNT(H9:H18) -> 0 | J19: =IF(AND($H$9=$AI$10,I19<=$AK$10,$H$9=$AI$11,$I$9<=$AK$11,$H$9=$AI$12,$I$9<=$AK$12,$H$9=$AI$13,$I$9<=$AK$13),"INCOMP"," ") ->  | K19: =IF(I19<='TABLA ENTRADA DE DATOS'!$C$10,"INCOMPATIBILIDAD"," ") -> INCOMPATIBILIDAD

Sheet MODULO
D2: DATI DO MÓDULO
D8: Altura total do módulo (mm) H1
D9: Espessura da placa (mm) E
D10: Dimensão interior (mm) H2 | H10: =IF(H8>=1,(H8-(2*H9))," ") -> 
D11: Sobreposição inferior/superior (mm) S1
D12: Sobreposição lateral (mm) S2
D13: N.º de gavetas | H13: ='C11'!$H$19 -> 0
D14: Saração entre gavetas (mm) | H14: 2

Sheet INICIO

Sheet CE2 (hidden)
E2: COTAS MECANIZADO
H11: COTAS MECANIZADO
E12: CAJÓN 1 - H1 | H12: =IF(MODULO!H13>=1,37," ") -> 
E13: CAJÓN 2 - H2 | H13: =IF(MODULO!$H$13>=2,'TABLA ENTRADA DE DATOS'!P19+H12+2," ") -> 
E14: CAJÓN 3 - H3 | H14: =IF(MODULO!$H$13>=3,'TABLA ENTRADA DE DATOS'!P18+H13+2-14," ") -> 
E15: CAJÓN 4 - H4 | H15: =IF(MODULO!$H$13>=4,'TABLA ENTRADA DE DATOS'!C19+H14+2," ") -> 
E16: CAJÓN 5 - H5 | H16: =IF(MODULO!$H$13>=5,'TABLA ENTRADA DE DATOS'!C20+H15+2," ") -> 
E17: CAJÓN 6 - H6 | H17: =IF(MODULO!$H$13>=6,'TABLA ENTRADA DE DATOS'!C21+H16+2," ") -> 
E18: CAJÓN 7 - H7 | H18: =IF(MODULO!$H$13>=7,'TABLA ENTRADA DE DATOS'!C22+H17+2," ") -> 
E19: CAJÓN 8 - H8 | H19: =IF(MODULO!$H$13>=8,'TABLA ENTRADA DE DATOS'!C23+H18+2," ") -> 
E20: CAJÓN 9 - H9 | H20: =IF(MODULO!$H$13>=9,'TABLA ENTRADA DE DATOS'!C24+H19+2," ") -> 
E21: CAJÓN 10 - H10 | H21: =IF(MODULO!$H$13>=10,'TABLA ENTRADA DE DATOS'!C25+H20+2," ") -> 
E22: TOTAL CAJONES | H22: =COUNT(H12:H21) -> 0

Sheet TABLA ENTRADA DE DATOS (hidden)
A1: CASO 1 CAJONES TODOS IGUALES | F1: CASO 2 1H83 + 4H93 IGUALES | J1: CASO 3 5 H93 MECANIZADO CAJÓN INFERIOR DIFERENTE | N1: CASO 3 CAJONES 1H93 + 2 H178 EXT, MEC FRENTE SUPERIOR DIFERENTE
A2: DATOS VARIABLES EN FUNCIÓN PT1 | F2: DATOS VARIABLE EN FUNCIÓN DE PT1 COMBINACIÓN ESPECIAL | J2: DATOS VARIABLES EN FUNCIÓN PT1 | N2: DATOS VARIABLES EN FUNCIÓN PT1
A3: H total | B3: H a repartir | C3: Hrepartida/cajón | F3: Htotal | G3: H a repartir | H3: Hrepartida/ cajón | J3: H total | K3: H a repartir | L3: Hrepartida/cajón | N3: H total | O3: H a repartir | P3: Hrepartida/cajón
A4: =MODULO!$H$8 -> 0 | B4: =MODULO!$H$10 -'TABLA ENTRADA DE DATOS'!$A$28+(2*MODULO!$H$11) ->  | C4: =$B$4/MODULO!$H$13 ->  | F4: 700 | G4: =MODULO!H10-$F$27+MODULO!H11 ->  | H4: =$G$4/MODULO!$H$13 ->  | J4: =MODULO!$H$8 -> 0 | K4: =MODULO!$H$10 -'TABLA ENTRADA DE DATOS'!$J$27+(2*MODULO!$H$11) ->  | L4: =$K$4/MODULO!$H$13 ->  | N4: =MODULO!$H$8 -> 0 | O4: =MODULO!$H$10 -'TABLA ENTRADA DE DATOS'!$N$27+(2*15) ->  | P4: =$O$4/MODULO!$H$13 -> 
N5: 700 | O5: =MODULO!$H$10 -'TABLA ENTRADA DE DATOS'!$N$27 ->  | P5: =(Tabla37[[#This Row],[H a repartir ]]-P4)/2 -> 
A7: DATOS CAJÓN FIJOS
A8: Hcajón | B8: Hint mínima | C8: Hfrontera
A9: 83 | B9: 105 | C9: =Tabla1[[#This Row],[Hint mínima ]]+(2*MODULO!$H$11) -> 105
A10: 93 | B10: 115 | C10: =Tabla1[[#This Row],[Hint mínima ]]+(2*MODULO!$H$11) -> 115
A11: 131 | B11: 153 | C11: =Tabla1[[#This Row],[Hint mínima ]]+(2*MODULO!$H$11) -> 153
A12: 178 | B12: 200 | C12: =Tabla1[[#This Row],[Hint mínima ]]+(2*MODULO!$H$11) -> 200
A13: 242 | B13: 266 | C13: =Tabla1[[#This Row],[Hint mínima ]]+(2*MODULO!$H$11) -> 266
A15: DATOS VARIABLES EN FINCIÓN PTO.2 | F15: DATOS VARIABLES PTO 2 COMINACIÓNES ESPECIALE | G15: Columna1 | H15: Columna2 | J15: DATOS VARIABLES PTO2 FROTERA INFERIOR DIFERENTE | N15: DATOS VARIABLES EN FINCIÓN PTO.2
A16: Hint mínima | B16: Hint repart.+ solape | C16: H frontera | D16: Hútil total | F16: Hinterior mínima | G16: Hint repart +solape | H16: Hfrontera | J16: Hinterior mínima | K16: Hint repart +solape | L16: Hfrontera | N16: Hint mínima | O16: Hint repart.+ solape | P16: H frontera
A17: =IF('C11'!H9=$A$9,$B$9,IF('C11'!H9=$A$10,$B$10,IF('C11'!H9=$A$11,$B$11,IF('C11'!H9=$A$12,$B$12,IF('C11'!H9=$A$13,$B$13,""))))) ->  | B17: =IF('C11'!$H$19>=1,(A17+$C$4),0) -> 0 | C17: =ROUND(IF(B17>=1,(B17-(MODULO!$H$13-1)*2/MODULO!$H$13),""),0) ->  | D17: =IF('C11'!H9=$A$9,$C$9,IF('C11'!H9=$A$10,$C$10,IF('C11'!H9=$A$11,$C$11,IF('C11'!H9=$A$12,$C$12,IF('C11'!H9=$A$13,$C$13,""))))) ->  | F17: =IF('C11'!H9=$A$9,$B$9,IF('C11'!H9=$A$10,$B$10,IF('C11'!H9=$A$11,$B$11,IF('C11'!H117=$A$12,$B$12,0)))) -> 0 | G17: =IF(MODULO!$H$13>=1,(F17+$H$4+10),0) -> 0 | H17: =ROUND(IF(G17>=1,(G17-1),""),0) ->  | J17: =IF('C11'!H9=$A$9,$B$9,IF('C11'!H9=$A$10,$B$10,IF('C11'!H9=$A$11,$B$11,IF('C11'!H9=$A$12,$B$12,0)))) -> 0 | K17: =IF(MODULO!$H$13>=1,(J17+$L$4),0) -> 0 | L17: =ROUND(IF(K17>=1,(K17-2),""),0) ->  | N17: =IF('C11'!H9=$A$9,$B$9,IF('C11'!H9=$A$10,$B$10,IF('C11'!H9=$A$11,$B$11,IF('C11'!H9=$A$12,$B$12,0)))) -> 0 | O17: =IF('C11'!$H$19>=1,N17+15.2+1+15-2,0) -> 0 | P17: =ROUND(IF(O17>=1,(O17-2),""),0) -> 
A18: =IF('C11'!H10=$A$9,$B$9,IF('C11'!H10=$A$10,$B$10,IF('C11'!H10=$A$11,$B$11,IF('C11'!H10=$A$12,$B$12,IF('C11'!H10=$A$13,$B$13,""))))) ->  | B18: =IF('C11'!$H$19>=2,(A18+$C$4),0) -> 0 | C18: =ROUND(IF(B18>=1,(B18-(MODULO!$H$13-1)*2/MODULO!$H$13),""),0) ->  | D18: =IF('C11'!H10=$A$9,$C$9,IF('C11'!H10=$A$10,$C$10,IF('C11'!H10=$A$11,$C$11,IF('C11'!H10=$A$12,$C$12,IF('C11'!H10=$A$13,$C$13,""))))) ->  | F18: =IF('C11'!H10=$A$9,$B$9,IF('C11'!H10=$A$10,$B$10,IF('C11'!H10=$A$11,$B$11,IF('C11'!H118=$A$12,$B$12,0)))) -> 0 | G18: =IF(MODULO!$H$13>=2,(F18+$H$4),0) -> 0 | H18: =ROUND(IF(G18>=1,(G18-1),""),0) ->  | J18: =IF('C11'!H10=$A$9,$B$9,IF('C11'!H10=$A$10,$B$10,IF('C11'!H10=$A$11,$B$11,IF('C11'!H10=$A$12,$B$12,0)))) -> 0 | K18: =IF(MODULO!$H$13>=2,(J18+$L$4),0) -> 0 | L18: =ROUND(IF(K18>=1,(K18-2),""),0) ->  | N18: =IF('C11'!H10=$A$9,$B$9,IF('C11'!H10=$A$10,$B$10,IF('C11'!H10=$A$11,$B$11,IF('C11'!H10=$A$12,$B$12,0)))) -> 0 | O18: =IF('C11'!$H$19>=1,(N18+15+71.25-2),0) -> 0 | P18: =ROUND(IF(O18>=1,(O18-2),""),0) -> 
A19: =IF('C11'!H11=$A$9,$B$9,IF('C11'!H11=$A$10,$B$10,IF('C11'!H11=$A$11,$B$11,IF('C11'!H11=$A$12,$B$12,IF('C11'!H11=$A$13,$B$13,""))))) ->  | B19: =IF('C11'!$H$19>=3,(A19+$C$4),0) -> 0 | C19: =ROUND(IF(B19>=1,(B19-(MODULO!$H$13-1)*2/MODULO!$H$13),""),0) ->  | D19: =IF('C11'!H11=$A$9,$C$9,IF('C11'!H11=$A$10,$C$10,IF('C11'!H11=$A$11,$C$11,IF('C11'!H11=$A$12,$C$12,IF('C11'!H11=$A$13,$C$13,""))))) ->  | F19: =IF('C11'!H11=$A$9,$B$9,IF('C11'!H11=$A$10,$B$10,IF('C11'!H11=$A$11,$B$11,IF('C11'!H119=$A$12,$B$12,0)))) -> 0 | G19: =IF(MODULO!$H$13>=3,(F19+$H$4),0) -> 0 | H19: =ROUND(IF(G19>=1,(G19-1),""),0) ->  | J19: =IF('C11'!H11=$A$9,$B$9,IF('C11'!H11=$A$10,$B$10,IF('C11'!H11=$A$11,$B$11,IF('C11'!H11=$A$12,$B$12,0)))) -> 0 | K19: =IF(MODULO!$H$13>=3,(J19+$L$4),0) -> 0 | N19: =IF('C11'!H11=$A$9,$B$9,IF('C11'!H11=$A$10,$B$10,IF('C11'!H11=$A$11,$B$11,IF('C11'!H11=$A$12,$B$12,0)))) -> 0 | O19: =IF('C11'!$H$19>=1,(N19+15+71.25-2),0) -> 0 | P19: =ROUND(IF(O19>=1,(O19-2),""),0) -> 
A20: =IF('C11'!H12=$A$9,$B$9,IF('C11'!H12=$A$10,$B$10,IF('C11'!H12=$A$11,$B$11,IF('C11'!H12=$A$12,$B$12,IF('C11'!H12=$A$13,$B$13,""))))) ->  | B20: =IF('C11'!$H$19>=4,(A20+$C$4),0) -> 0 | C20: =ROUND(IF(B20>=1,(B20-(MODULO!$H$13-1)*2/MODULO!$H$13),""),0) ->  | D20: =IF('C11'!H12=$A$9,$C$9,IF('C11'!H12=$A$10,$C$10,IF('C11'!H12=$A$11,$C$11,IF('C11'!H12=$A$12,$C$12,IF('C11'!H12=$A$13,$C$13,""))))) ->  | F20: =IF('C11'!H12=$A$9,$B$9,IF('C11'!H12=$A$10,$B$10,IF('C11'!H12=$A$11,$B$11,IF('C11'!H120=$A$12,$B$12,0)))) -> 0 | G20: =IF(MODULO!$H$13>=4,(F20+$H$4),0) -> 0 | H20: =ROUND(IF(G20>=1,(G20-1),""),0) ->  | J20: =IF('C11'!H12=$A$9,$B$9,IF('C11'!H12=$A$10,$B$10,IF('C11'!H12=$A$11,$B$11,IF('C11'!H12=$A$12,$B$12,0)))) -> 0 | K20: =IF(MODULO!$H$13>=4,(J20+$L$4),0) -> 0 | N20: =IF('C11'!H12=$A$9,$B$9,IF('C11'!H12=$A$10,$B$10,IF('C11'!H12=$A$11,$B$11,IF('C11'!H12=$A$12,$B$12,0)))) -> 0 | O20: =IF('C11'!$H$19>=1,(N20+$P$4-30),0) -> 0
A21: =IF('C11'!H13=$A$9,$B$9,IF('C11'!H13=$A$10,$B$10,IF('C11'!H13=$A$11,$B$11,IF('C11'!H13=$A$12,$B$12,IF('C11'!H13=$A$13,$B$13,""))))) ->  | B21: =IF('C11'!$H$19>=5,(A21+$C$4),0) -> 0 | C21: =ROUND(IF(B21>=1,(B21-(MODULO!$H$13-1)*2/MODULO!$H$13),""),0) ->  | D21: =IF('C11'!H13=$A$9,$C$9,IF('C11'!H13=$A$10,$C$10,IF('C11'!H13=$A$11,$C$11,IF('C11'!H13=$A$12,$C$12,IF('C11'!H13=$A$13,$C$13,""))))) ->  | F21: =IF('C11'!H13=$A$9,$B$9,IF('C11'!H13=$A$10,$B$10,IF('C11'!H13=$A$11,$B$11,IF('C11'!H121=$A$12,$B$12,0)))) -> 0 | G21: =IF(MODULO!$H$13>=5,(F21+$H$4),0) -> 0 | H21: =ROUND(IF(G21>=1,(G21-1),""),0) ->  | J21: =IF('C11'!H13=$A$9,$B$9,IF('C11'!H13=$A$10,$B$10,IF('C11'!H13=$A$11,$B$11,IF('C11'!H13=$A$12,$B$12,0)))) -> 0 | K21: =IF(MODULO!$H$13>=5,(J21+$L$4),0) -> 0 | L21: =ROUND(IF(K21>=1,(K21-2),""),0) ->  | N21: =IF('C11'!H13=$A$9,$B$9,IF('C11'!H13=$A$10,$B$10,IF('C11'!H13=$A$11,$B$11,IF('C11'!H13=$A$12,$B$12,0)))) -> 0 | O21: =IF('C11'!$H$19>=1,(N21+$P$4-30),0) -> 0 | P21: =ROUND(IF(O21>=1,(O21-2),""),0) -> 
A22: =IF('C11'!H14=$A$9,$B$9,IF('C11'!H14=$A$10,$B$10,IF('C11'!H14=$A$11,$B$11,IF('C11'!H14=$A$12,$B$12,IF('C11'!H14=$A$13,$B$13,""))))) ->  | B22: =IF('C11'!$H$19>=6,(A22+$C$4),0) -> 0 | C22: =ROUND(IF(B22>=1,(B22-(MODULO!$H$13-1)*2/MODULO!$H$13),""),0) ->  | D22: =IF('C11'!H14=$A$9,$C$9,IF('C11'!H14=$A$10,$C$10,IF('C11'!H14=$A$11,$C$11,IF('C11'!H14=$A$12,$C$12,IF('C11'!H14=$A$13,$C$13,""))))) ->  | F22: =IF('C11'!H14=$A$9,$B$9,IF('C11'!H14=$A$10,$B$10,IF('C11'!H14=$A$11,$B$11,IF('C11'!H122=$A$12,$B$12,0)))) -> 0 | G22: =IF(MODULO!$H$13>=6,(F22+$H$4+10),0) -> 0 | H22: =ROUND(IF(G22>=1,(G22-2),""),0) ->  | J22: =IF('C11'!H14=$A$9,$B$9,IF('C11'!H14=$A$10,$B$10,IF('C11'!H14=$A$11,$B$11,IF('C11'!H14=$A$12,$B$12,0)))) -> 0 | K22: =IF(MODULO!$H$13>=6,(J22+$L$4),0) -> 0 | N22: =IF('C11'!H14=$A$9,$B$9,IF('C11'!H14=$A$10,$B$10,IF('C11'!H14=$A$11,$B$11,IF('C11'!H14=$A$12,$B$12,0)))) -> 0 | O22: =IF('C11'!$H$19>=1,(N22+$P$4-30),0) -> 0 | P22: =ROUND(IF(O22>=1,(O22-2),""),0) -> 
A23: =IF('C11'!H15=$A$9,$B$9,IF('C11'!H15=$A$10,$B$10,IF('C11'!H15=$A$11,$B$11,IF('C11'!H15=$A$12,$B$12,IF('C11'!H15=$A$13,$B$13,""))))) ->  | B23: =IF('C11'!$H$19>=7,(A23+$C$4),0) -> 0 | C23: =ROUND(IF(B23>=1,(B23-(MODULO!$H$13-1)*2/MODULO!$H$13),""),0) ->  | D23: =IF('C11'!H15=$A$9,$C$9,IF('C11'!H15=$A$10,$C$10,IF('C11'!H15=$A$11,$C$11,IF('C11'!H15=$A$12,$C$12,IF('C11'!H15=$A$13,$C$13,""))))) ->  | F23: =IF('C11'!H15=$A$9,$B$9,IF('C11'!H15=$A$10,$B$10,IF('C11'!H15=$A$11,$B$11,IF('C11'!H123=$A$12,$B$12,0)))) -> 0 | G23: =IF(MODULO!$H$13>=7,(F23+$H$4+10),0) -> 0 | H23: =ROUND(IF(G23>=1,(G23-2),""),0) ->  | J23: =IF('C11'!H15=$A$9,$B$9,IF('C11'!H15=$A$10,$B$10,IF('C11'!H15=$A$11,$B$11,IF('C11'!H15=$A$12,$B$12,0)))) -> 0 | K23: =IF(MODULO!$H$13>=7,(J23+$L$4),0) -> 0 | L23: =ROUND(IF(K23>=1,(K23-2),""),0) ->  | N23: =IF('C11'!H15=$A$9,$B$9,IF('C11'!H15=$A$10,$B$10,IF('C11'!H15=$A$11,$B$11,IF('C11'!H15=$A$12,$B$12,0)))) -> 0 | O23: =IF('C11'!$H$19>=1,(N23+$P$4-30),0) -> 0 | P23: =ROUND(IF(O23>=1,(O23-2),""),0) -> 
A24: =IF('C11'!H16=$A$9,$B$9,IF('C11'!H16=$A$10,$B$10,IF('C11'!H16=$A$11,$B$11,IF('C11'!H16=$A$12,$B$12,IF('C11'!H16=$A$13,$B$13,""))))) ->  | B24: =IF('C11'!$H$19>=8,(A24+$C$4),0) -> 0 | C24: =ROUND(IF(B24>=1,(B24-(MODULO!$H$13-1)*2/MODULO!$H$13),""),0) ->  | D24: =IF('C11'!H16=$A$9,$C$9,IF('C11'!H16=$A$10,$C$10,IF('C11'!H16=$A$11,$C$11,IF('C11'!H16=$A$12,$C$12,IF('C11'!H16=$A$13,$C$13,""))))) ->  | F24: =IF('C11'!H16=$A$9,$B$9,IF('C11'!H16=$A$10,$B$10,IF('C11'!H16=$A$11,$B$11,IF('C11'!H124=$A$12,$B$12,0)))) -> 0 | G24: =IF(MODULO!$H$13>=8,(F24+$H$4+10),0) -> 0 | J24: =IF('C11'!H16=$A$9,$B$9,IF('C11'!H16=$A$10,$B$10,IF('C11'!H16=$A$11,$B$11,IF('C11'!H16=$A$12,$B$12,0)))) -> 0 | K24: =IF(MODULO!$H$13>=8,(J24+$L$4),0) -> 0 | N24: =IF('C11'!H16=$A$9,$B$9,IF('C11'!H16=$A$10,$B$10,IF('C11'!H16=$A$11,$B$11,IF('C11'!H16=$A$12,$B$12,0)))) -> 0 | O24: =IF('C11'!$H$19>=1,(N24+$P$4-30),0) -> 0
A25: =IF('C11'!H17=$A$9,$B$9,IF('C11'!H17=$A$10,$B$10,IF('C11'!H17=$A$11,$B$11,IF('C11'!H17=$A$12,$B$12,IF('C11'!H17=$A$13,$B$13,""))))) ->  | B25: =IF('C11'!$H$19>=9,(A25+$C$4),0) -> 0 | C25: =ROUND(IF(B25>=1,(B25-(MODULO!$H$13-1)*2/MODULO!$H$13),""),0) ->  | D25: =IF('C11'!H17=$A$9,$C$9,IF('C11'!H17=$A$10,$C$10,IF('C11'!H17=$A$11,$C$11,IF('C11'!H17=$A$12,$C$12,IF('C11'!H17=$A$13,$C$13,""))))) ->  | F25: =IF('C11'!H17=$A$9,$B$9,IF('C11'!H17=$A$10,$B$10,IF('C11'!H17=$A$11,$B$11,IF('C11'!H125=$A$12,$B$12,0)))) -> 0 | G25: =IF(MODULO!$H$13>=9,(F25+$H$4+10),0) -> 0 | J25: =IF('C11'!H17=$A$9,$B$9,IF('C11'!H17=$A$10,$B$10,IF('C11'!H17=$A$11,$B$11,IF('C11'!H17=$A$12,$B$12,0)))) -> 0 | K25: =IF(MODULO!$H$13>=9,(J25+$L$4),0) -> 0 | N25: =IF('C11'!H17=$A$9,$B$9,IF('C11'!H17=$A$10,$B$10,IF('C11'!H17=$A$11,$B$11,IF('C11'!H17=$A$12,$B$12,0)))) -> 0 | O25: =IF('C11'!$H$19>=1,(N25+$P$4-30),0) -> 0
A26: =IF('C11'!H18=$A$9,$B$9,IF('C11'!H18=$A$10,$B$10,IF('C11'!H18=$A$11,$B$11,IF('C11'!H18=$A$12,$B$12,IF('C11'!H18=$A$13,$B$13,""))))) ->  | B26: =IF('C11'!$H$19>=10,(A26+$C$4),0) -> 0 | C26: =ROUND(IF(B26>=1,(B26-(MODULO!$H$13-1)*2/MODULO!$H$13),""),0) ->  | D26: =IF('C11'!H18=$A$9,$C$9,IF('C11'!H18=$A$10,$C$10,IF('C11'!H18=$A$11,$C$11,IF('C11'!H18=$A$12,$C$12,IF('C11'!H18=$A$13,$C$13,""))))) ->  | F26: =IF('C11'!H18=$A$9,$B$9,IF('C11'!H18=$A$10,$B$10,IF('C11'!H18=$A$11,$B$11,IF('C11'!H126=$A$12,$B$12,0)))) -> 0 | G26: =IF(MODULO!$H$13>=10,(F26+$H$4+10),0) -> 0 | J26: =IF('C11'!H18=$A$9,$B$9,IF('C11'!H18=$A$10,$B$10,IF('C11'!H18=$A$11,$B$11,IF('C11'!H18=$A$12,$B$12,0)))) -> 0 | K26: =IF(MODULO!$H$13>=10,(J26+$L$4),0) -> 0 | N26: =IF('C11'!H18=$A$9,$B$9,IF('C11'!H18=$A$10,$B$10,IF('C11'!H18=$A$11,$B$11,IF('C11'!H18=$A$12,$B$12,0)))) -> 0 | O26: =IF('C11'!$H$19>=1,(N26+$P$4-30),0) -> 0
A27: =IF('C11'!H19=$A$9,$B$9,IF('C11'!H19=$A$10,$B$10,IF('C11'!H19=$A$11,$B$11,IF('C11'!H19=$A$12,$B$12,IF('C11'!H19=$A$13,$B$13,""))))) ->  | B27: =IF('C11'!$H$19>=1,(A27+$C$4),0) -> 0 | C27: =ROUND(IF(B27>=1,(B27-(MODULO!$H$13-1)*2/MODULO!$H$13),""),0) ->  | D27: =IF('C11'!H19=$A$9,$C$9,IF('C11'!H19=$A$10,$C$10,IF('C11'!H19=$A$11,$C$11,IF('C11'!H19=$A$12,$C$12,IF('C11'!H19=$A$13,$C$13,""))))) ->  | F27: =SUM(F17:F26) -> 0 | J27: =SUM(J17:J26) -> 0 | N27: =SUM(Tabla28[[Hint mínima ]]) -> 0
A28: =SUM(Tabla2[[Hint mínima ]]) -> 0
A30: =Tabla2[[#Totals],[Hint mínima ]] -> 0
D31: =SUM(Tabla2[Hútil total]) -> 0
